[Event "Early-Titled-Tuesday-Blitz-August-29-2023"]
[Site "Chess.com"]
[Date "2023.08.29"]
[Round "11"]
[White "Alexei_Gubajdullin"]
[Black "workhard91"]
[Result "1-0"]
[WhiteElo "2618"]
[BlackElo "2439"]
[TimeControl "180+1"]
[EndTime "10:03:05 PDT"]
[Termination "Alexei_Gubajdullin won by resignation"]

1. d4 {[%clk 0:03:00]} 1... Nf6 {[%clk 0:02:58.2]} 2. Nf3 {[%clk 0:03:00.1]}
2... d5 {[%clk 0:02:58.8]} 3. Bf4 {[%clk 0:03:00.5]} 3... c5 {[%clk 0:02:58.5]}
4. e3 {[%clk 0:03:00.6]} 4... Nc6 {[%clk 0:02:58.7]} 5. Nbd2 {[%clk 0:03:00.5]}
5... e6 {[%clk 0:02:56.8]} 6. c3 {[%clk 0:03:00.2]} 6... Bd6 {[%clk 0:02:57.3]}
7. Bg3 {[%clk 0:03:00.5]} 7... O-O {[%clk 0:02:57.3]} 8. Bd3 {[%clk 0:03:00.7]}
8... b6 {[%clk 0:02:57.2]} 9. Ne5 {[%clk 0:03:00.4]} 9... Bb7 {[%clk 0:02:57.8]}
10. f4 {[%clk 0:03:00.5]} 10... Ne7 {[%clk 0:02:52.3]} 11. Qf3 {[%clk
0:02:59.5]} 11... Nf5 {[%clk 0:02:52.1]} 12. Bf2 {[%clk 0:02:59.3]} 12... Be7
{[%clk 0:02:52.7]} 13. g4 {[%clk 0:02:59.3]} 13... Nd6 {[%clk 0:02:53.2]} 14. g5
{[%clk 0:02:59.6]} 14... Nfe4 {[%clk 0:02:53.5]} 15. Rg1 {[%clk 0:02:59.8]}
15... c4 {[%clk 0:02:35.7]} 16. Bc2 {[%clk 0:02:59.4]} 16... b5 {[%clk
0:02:35.4]} 17. Qh3 {[%clk 0:02:58]} 17... a5 {[%clk 0:02:28.2]} 18. Rg4 {[%clk
0:02:47.6]} 18... f6 {[%clk 0:02:07.5]} 19. Rh4 {[%clk 0:02:27.1]} 19... fxe5
{[%clk 0:01:22.5]} 20. Rxh7 {[%clk 0:02:25.4]} 20... Nf5 {[%clk 0:01:09]} 21.
Qh5 {[%clk 0:02:16.5]} 21... Nh6 {[%clk 0:00:58.3]} 22. Qg6 {[%clk 0:02:13.2]}
22... Bf6 {[%clk 0:00:37.7]} 23. gxh6 {[%clk 0:02:03]} 23... Rf7 {[%clk
0:00:34.3]} 24. Nxe4 {[%clk 0:01:48.9]} 24... dxe4 {[%clk 0:00:31.9]} 25. dxe5
{[%clk 0:01:41.5]} 25... Bxe5 {[%clk 0:00:16.5]} 26. fxe5 {[%clk 0:01:36.2]}
26... Qf8 {[%clk 0:00:15.1]} 27. Rxg7+ {[%clk 0:01:22.4]} 27... Rxg7 {[%clk
0:00:14.9]} 28. Qxg7+ {[%clk 0:01:21.2]} 28... Qxg7 {[%clk 0:00:15.1]} 29. hxg7
{[%clk 0:01:21.4]} 29... Kxg7 {[%clk 0:00:15.2]} 30. Rd1 {[%clk 0:01:20.9]}
30... Bd5 {[%clk 0:00:15.2]} 31. Bg3 {[%clk 0:01:19.6]} 31... b4 {[%clk
0:00:12]} 32. Rd4 {[%clk 0:01:19.3]} 32... Rb8 {[%clk 0:00:11.8]} 33. Bxe4
{[%clk 0:01:18.8]} 33... Bxe4 {[%clk 0:00:11.3]} 34. Rxe4 {[%clk 0:01:18.9]}
34... bxc3 {[%clk 0:00:10]} 35. b3 {[%clk 0:01:18.9]} 35... c2 {[%clk
0:00:08.4]} 36. Kd2 {[%clk 0:01:18.1]} 36... cxb3 {[%clk 0:00:09]} 37. axb3
{[%clk 0:01:17.4]} 37... Rxb3 {[%clk 0:00:09.5]} 38. Kxc2 {[%clk 0:01:17.4]}
38... Ra3 {[%clk 0:00:10.4]} 39. Kb2 {[%clk 0:01:07.8]} 39... Rd3 {[%clk
0:00:10.2]} 40. Bf4 {[%clk 0:01:07.2]} 40... Kg6 {[%clk 0:00:09.9]} 41. Rd4
{[%clk 0:01:05]} 41... Rxd4 {[%clk 0:00:06]} 42. exd4 {[%clk 0:01:04.9]} 42...
Kf5 {[%clk 0:00:06.9]} 43. Bd2 {[%clk 0:01:04.1]} 43... Ke4 {[%clk 0:00:07.4]}
44. Bxa5 {[%clk 0:01:02.4]} 44... Kxd4 {[%clk 0:00:07.7]} 45. Bc3+ {[%clk
0:01:02.3]} 45... Ke4 {[%clk 0:00:08.3]} 46. Kb3 {[%clk 0:01:02.3]} 46... Kf3
{[%clk 0:00:08.4]} 47. Kc4 {[%clk 0:01:02.4]} 47... Kg4 {[%clk 0:00:09.1]} 48.
Kc5 {[%clk 0:01:02]} 48... Kh3 {[%clk 0:00:10]} 49. Kd6 {[%clk 0:01:02]} 49...
Kxh2 {[%clk 0:00:10.9]} 50. Kxe6 {[%clk 0:01:02.4]} 50... Kg3 {[%clk 0:00:11.8]}
51. Kd6 {[%clk 0:01:02.6]} 51... Kf4 {[%clk 0:00:12.7]} 52. e6 {[%clk 0:01:03]}
52... Kf5 {[%clk 0:00:13.6]} 53. e7 {[%clk 0:01:03.3]} 1-0

[Event "Early-Titled-Tuesday-Blitz-August-29-2023"]
[Site "Chess.com"]
[Date "2023.08.29"]
[Round "11"]
[White "wannabe2700"]
[Black "Aswathchess"]
[Result "1-0"]
[WhiteElo "2651"]
[BlackElo "2526"]
[TimeControl "180+1"]
[EndTime "10:03:07 PDT"]
[Termination "wannabe2700 won by resignation"]

1. d4 {[%clk 0:02:57.7]} 1... Nf6 {[%clk 0:02:59]} 2. c4 {[%clk 0:02:51.8]} 2...
e6 {[%clk 0:02:59.3]} 3. Nc3 {[%clk 0:02:48.7]} 3... Bb4 {[%clk 0:02:59.2]} 4.
f3 {[%clk 0:02:46.2]} 4... O-O {[%clk 0:02:57.9]} 5. e4 {[%clk 0:02:42.6]} 5...
d5 {[%clk 0:02:57.8]} 6. cxd5 {[%clk 0:02:33.4]} 6... exd5 {[%clk 0:02:58.7]} 7.
e5 {[%clk 0:02:33.9]} 7... Nfd7 {[%clk 0:02:58.9]} 8. a3 {[%clk 0:02:21.6]} 8...
Ba5 {[%clk 0:02:52.7]} 9. Be3 {[%clk 0:01:52.5]} 9... c5 {[%clk 0:02:47.7]} 10.
f4 {[%clk 0:01:42.7]} 10... cxd4 {[%clk 0:02:42.2]} 11. Bxd4 {[%clk 0:01:35]}
11... Nc6 {[%clk 0:02:42.2]} 12. b4 {[%clk 0:01:31.6]} 12... Nxd4 {[%clk
0:02:36.6]} 13. Qxd4 {[%clk 0:01:32.5]} 13... Bb6 {[%clk 0:02:36.4]} 14. Qxd5
{[%clk 0:01:31.9]} 14... a5 {[%clk 0:02:23.1]} 15. Rd1 {[%clk 0:01:16]} 15...
axb4 {[%clk 0:02:22.2]} 16. axb4 {[%clk 0:01:16.9]} 16... Ra3 {[%clk 0:02:20.1]}
17. Nb5 {[%clk 0:01:12.8]} 17... Re3+ {[%clk 0:01:28.6]} 18. Be2 {[%clk
0:01:13]} 18... Qe7 {[%clk 0:01:14]} 19. Nd6 {[%clk 0:01:12.1]} 19... g5 {[%clk
0:00:38.4]} 20. Nf3 {[%clk 0:00:49.1]} 20... gxf4 {[%clk 0:00:30.7]} 21. Nxc8
{[%clk 0:00:44.2]} 21... Qxb4+ {[%clk 0:00:29.6]} 22. Qd2 {[%clk 0:00:31.4]}
22... Qe4 {[%clk 0:00:11.9]} 23. Nd6 {[%clk 0:00:27.1]} 23... Qc6 {[%clk
0:00:08.6]} 24. Nf5 {[%clk 0:00:22.3]} 24... Nxe5 {[%clk 0:00:08.8]} 25. Nxe3
{[%clk 0:00:20.8]} 25... fxe3 {[%clk 0:00:07.1]} 26. Qb4 {[%clk 0:00:19.7]}
26... Qf6 {[%clk 0:00:04.4]} 27. O-O {[%clk 0:00:18.8]} 27... Ng4 {[%clk
0:00:04.4]} 28. Qxg4+ {[%clk 0:00:17.3]} 1-0

[Event "Early-Titled-Tuesday-Blitz-August-29-2023"]
[Site "Chess.com"]
[Date "2023.08.29"]
[Round "11"]
[White "AnaKuchava"]
[Black "le_poisson"]
[Result "1-0"]
[WhiteElo "2214"]
[BlackElo "2309"]
[TimeControl "180+1"]
[EndTime "10:03:07 PDT"]
[Termination "AnaKuchava won by resignation"]

1. d4 {[%clk 0:03:00.9]} 1... d5 {[%clk 0:03:00.1]} 2. Nf3 {[%clk 0:02:50]} 2...
Nf6 {[%clk 0:03:00.1]} 3. c4 {[%clk 0:02:49.5]} 3... c6 {[%clk 0:03:00.5]} 4.
Qb3 {[%clk 0:02:48.5]} 4... dxc4 {[%clk 0:02:58.2]} 5. Qxc4 {[%clk 0:02:49.4]}
5... Bf5 {[%clk 0:02:58.1]} 6. Nc3 {[%clk 0:02:48.1]} 6... Nbd7 {[%clk 0:02:55]}
7. g3 {[%clk 0:02:46.8]} 7... e6 {[%clk 0:02:54.5]} 8. Bg2 {[%clk 0:02:46]} 8...
Be7 {[%clk 0:02:54.8]} 9. O-O {[%clk 0:02:46.2]} 9... h6 {[%clk 0:02:55.5]} 10.
Re1 {[%clk 0:02:45.1]} 10... Ne4 {[%clk 0:02:47.3]} 11. Nh4 {[%clk 0:02:41.6]}
11... Bxh4 {[%clk 0:02:27.4]} 12. Nxe4 {[%clk 0:02:38.9]} 12... Be7 {[%clk
0:02:22.9]} 13. Nc5 {[%clk 0:02:26]} 13... Nxc5 {[%clk 0:02:03]} 14. dxc5 {[%clk
0:02:26.9]} 14... Bf6 {[%clk 0:01:46.6]} 15. Bf4 {[%clk 0:02:16.3]} 15... Qd4
{[%clk 0:01:37.2]} 16. Qxd4 {[%clk 0:02:03.8]} 16... Bxd4 {[%clk 0:01:36.9]} 17.
Bd6 {[%clk 0:02:04]} 17... O-O-O {[%clk 0:01:17.1]} 18. e4 {[%clk 0:01:57.3]}
18... Bg6 {[%clk 0:01:11.5]} 19. Red1 {[%clk 0:01:48.9]} 19... Bxb2 {[%clk
0:00:57.5]} 20. Rab1 {[%clk 0:01:47.5]} 20... Bf6 {[%clk 0:00:56.5]} 21. Rb3
{[%clk 0:01:04.6]} 21... Rd7 {[%clk 0:00:54.6]} 22. e5 {[%clk 0:00:48.8]} 22...
Bxe5 {[%clk 0:00:40.5]} 23. Bxc6 {[%clk 0:00:45.1]} 23... Rxd6 {[%clk 0:00:35]}
24. Bxb7+ {[%clk 0:00:42.8]} 24... Kc7 {[%clk 0:00:27.7]} 25. cxd6+ {[%clk
0:00:42.6]} 25... Bxd6 {[%clk 0:00:24.5]} 26. Rc1+ {[%clk 0:00:39]} 26... Kd7
{[%clk 0:00:21.9]} 27. Bc6+ {[%clk 0:00:37.8]} 27... Ke7 {[%clk 0:00:20.4]} 28.
Rb7+ {[%clk 0:00:37]} 28... Kf6 {[%clk 0:00:20.8]} 29. Rxa7 {[%clk 0:00:35.2]}
29... Rb8 {[%clk 0:00:20.2]} 30. Rb7 {[%clk 0:00:32.3]} 30... Rc8 {[%clk
0:00:18.2]} 31. a4 {[%clk 0:00:21.9]} 31... Be4 {[%clk 0:00:17.7]} 32. Rb6
{[%clk 0:00:21.1]} 32... Ba3 {[%clk 0:00:13.6]} 33. Rc4 {[%clk 0:00:20.1]} 33...
Bd5 {[%clk 0:00:12.4]} 34. Bxd5 {[%clk 0:00:20.4]} 34... Rxc4 {[%clk 0:00:11.5]}
35. Bxc4 {[%clk 0:00:21.3]} 1-0

[Event "Early-Titled-Tuesday-Blitz-August-29-2023"]
[Site "Chess.com"]
[Date "2023.08.29"]
[Round "11"]
[White "Kildepiotr"]
[Black "angryspacevoid"]
[Result "0-1"]
[WhiteElo "2657"]
[BlackElo "2561"]
[TimeControl "180+1"]
[EndTime "10:03:08 PDT"]
[Termination "angryspacevoid won by resignation"]

1. Nf3 {[%clk 0:02:53.2]} 1... Nc6 {[%clk 0:02:57.1]} 2. g3 {[%clk 0:02:53.3]}
2... e5 {[%clk 0:02:57.1]} 3. d3 {[%clk 0:02:54]} 3... d5 {[%clk 0:02:57]} 4.
Bg2 {[%clk 0:02:54.7]} 4... h5 {[%clk 0:02:57.3]} 5. h4 {[%clk 0:02:53.5]} 5...
Bg4 {[%clk 0:02:56.6]} 6. Nc3 {[%clk 0:02:52.9]} 6... Bc5 {[%clk 0:02:51.6]} 7.
e4 {[%clk 0:02:47.3]} 7... Nge7 {[%clk 0:02:46.3]} 8. O-O {[%clk 0:02:43.2]}
8... O-O {[%clk 0:02:24.8]} 9. a3 {[%clk 0:02:26]} 9... a6 {[%clk 0:02:14.7]}
10. exd5 {[%clk 0:02:21.1]} 10... Nxd5 {[%clk 0:02:00.6]} 11. Nxd5 {[%clk
0:02:20.9]} 11... Qxd5 {[%clk 0:02:00.2]} 12. Be3 {[%clk 0:02:21.6]} 12... Rad8
{[%clk 0:01:50.4]} 13. Bxc5 {[%clk 0:01:55.9]} 13... Qxc5 {[%clk 0:01:47.4]} 14.
Qc1 {[%clk 0:01:56.1]} 14... f5 {[%clk 0:01:40]} 15. Ng5 {[%clk 0:01:51.7]}
15... f4 {[%clk 0:01:29.2]} 16. Kh2 {[%clk 0:01:44.7]} 16... Nd4 {[%clk
0:01:24.1]} 17. b4 {[%clk 0:01:31.9]} 17... Qe7 {[%clk 0:00:59.3]} 18. Qd2
{[%clk 0:01:20.8]} 18... c6 {[%clk 0:00:56.3]} 19. Rae1 {[%clk 0:01:14.7]} 19...
Qc7 {[%clk 0:00:49]} 20. c3 {[%clk 0:01:11.5]} 20... f3 {[%clk 0:00:38.2]} 21.
Bh3 {[%clk 0:01:06.4]} 21... Bxh3 {[%clk 0:00:26.4]} 22. Kxh3 {[%clk 0:01:07.3]}
22... Qd7+ {[%clk 0:00:24.9]} 23. Kh2 {[%clk 0:01:07.2]} 23... Nf5 {[%clk
0:00:24.5]} 24. d4 {[%clk 0:00:49.6]} 24... exd4 {[%clk 0:00:22.7]} 25. Ne6
{[%clk 0:00:49.5]} 25... d3 {[%clk 0:00:15.5]} 26. Nxf8 {[%clk 0:00:46.5]} 26...
Rxf8 {[%clk 0:00:16.4]} 27. Re4 {[%clk 0:00:42.1]} 27... Nh6 {[%clk 0:00:13.3]}
28. Rd1 {[%clk 0:00:39.8]} 28... Ng4+ {[%clk 0:00:08.9]} 29. Kg1 {[%clk
0:00:40]} 29... Nf6 {[%clk 0:00:09.1]} 30. Qxd3 {[%clk 0:00:18]} 30... Qxd3
{[%clk 0:00:07.1]} 31. Rxd3 {[%clk 0:00:18.9]} 31... Nxe4 {[%clk 0:00:07.5]} 32.
Re3 {[%clk 0:00:18.9]} 32... Nd2 {[%clk 0:00:07.4]} 33. Kh2 {[%clk 0:00:18.3]}
33... Nf1+ {[%clk 0:00:06.8]} 0-1

[Event "Early-Titled-Tuesday-Blitz-August-29-2023"]
[Site "Chess.com"]
[Date "2023.08.29"]
[Round "11"]
[White "Eternauta2400"]
[Black "Durarbayli"]
[Result "0-1"]
[WhiteElo "2792"]
[BlackElo "2915"]
[TimeControl "180+1"]
[EndTime "10:03:11 PDT"]
[Termination "Durarbayli won by checkmate"]

1. c4 {[%clk 0:03:00.9]} 1... Nf6 {[%clk 0:02:59.3]} 2. Nc3 {[%clk 0:03:00.7]}
2... c5 {[%clk 0:02:58.3]} 3. Nf3 {[%clk 0:03:00.6]} 3... e6 {[%clk 0:02:57.6]}
4. g3 {[%clk 0:02:59.2]} 4... b6 {[%clk 0:02:58.1]} 5. Bg2 {[%clk 0:02:59.3]}
5... Bb7 {[%clk 0:02:58.9]} 6. O-O {[%clk 0:02:59.9]} 6... Be7 {[%clk
0:02:59.6]} 7. d4 {[%clk 0:03:00.3]} 7... cxd4 {[%clk 0:03:00.3]} 8. Qxd4 {[%clk
0:03:01]} 8... d6 {[%clk 0:03:00.6]} 9. Bg5 {[%clk 0:03:00.3]} 9... a6 {[%clk
0:03:00.4]} 10. Bxf6 {[%clk 0:02:54.8]} 10... Bxf6 {[%clk 0:03:00.4]} 11. Qf4
{[%clk 0:02:55.4]} 11... g5 {[%clk 0:02:52.9]} 12. Qe3 {[%clk 0:02:52.8]} 12...
h6 {[%clk 0:02:42.1]} 13. Rfd1 {[%clk 0:02:51.6]} 13... Qc7 {[%clk 0:02:42.3]}
14. Rac1 {[%clk 0:02:44.9]} 14... Kf8 {[%clk 0:02:33.5]} 15. Ne4 {[%clk
0:02:37.3]} 15... Bxe4 {[%clk 0:02:25]} 16. Qxe4 {[%clk 0:02:37.1]} 16... Ra7
{[%clk 0:02:25.9]} 17. b3 {[%clk 0:02:32.3]} 17... Nd7 {[%clk 0:02:21.7]} 18.
Nd4 {[%clk 0:02:29.2]} 18... Ne5 {[%clk 0:02:14.1]} 19. e3 {[%clk 0:02:23.7]}
19... Kg7 {[%clk 0:02:11.9]} 20. Rd2 {[%clk 0:02:19.3]} 20... Rd8 {[%clk
0:02:11.1]} 21. Rcd1 {[%clk 0:02:19.1]} 21... Qc5 {[%clk 0:02:05.3]} 22. Bh3
{[%clk 0:02:14]} 22... Re7 {[%clk 0:01:53]} 23. f4 {[%clk 0:02:03.3]} 23... Ng6
{[%clk 0:01:21.4]} 24. Nc6 {[%clk 0:01:52.3]} 24... d5 {[%clk 0:01:14.6]} 25.
cxd5 {[%clk 0:01:24.4]} 25... exd5 {[%clk 0:01:14.6]} 26. Qc2 {[%clk 0:01:08.9]}
26... Qxe3+ {[%clk 0:01:12.1]} 27. Kh1 {[%clk 0:01:05.6]} 27... Rc7 {[%clk
0:00:59.2]} 28. fxg5 {[%clk 0:00:39.4]} 28... hxg5 {[%clk 0:00:53.4]} 29. Bg2
{[%clk 0:00:20.8]} 29... Qe8 {[%clk 0:00:38.1]} 30. Bxd5 {[%clk 0:00:09.4]}
30... Rxd5 {[%clk 0:00:38.1]} 31. Rxd5 {[%clk 0:00:09.2]} 31... Rxc6 {[%clk
0:00:38.7]} 32. Qd2 {[%clk 0:00:07.2]} 32... Re6 {[%clk 0:00:38.1]} 33. Rd7
{[%clk 0:00:04.6]} 33... Ne5 {[%clk 0:00:37]} 34. Ra7 {[%clk 0:00:01.9]} 34...
g4 {[%clk 0:00:33.8]} 35. Qd5 {[%clk 0:00:01.7]} 35... Nf3 {[%clk 0:00:32.3]}
36. Ra8 {[%clk 0:00:02.3]} 36... Re1+ {[%clk 0:00:32.2]} 37. Kg2 {[%clk
0:00:02.8]} 37... Qe2# {[%clk 0:00:31.8]} 0-1

[Event "Early-Titled-Tuesday-Blitz-August-29-2023"]
[Site "Chess.com"]
[Date "2023.08.29"]
[Round "11"]
[White "Sina_Movahed"]
[Black "joppie2"]
[Result "0-1"]
[WhiteElo "2988"]
[BlackElo "2978"]
[TimeControl "180+1"]
[EndTime "10:03:14 PDT"]
[Termination "joppie2 won on time"]

1. e4 {[%clk 0:03:00.9]} 1... e5 {[%clk 0:02:58.7]} 2. Nf3 {[%clk 0:03:01.1]}
2... Nc6 {[%clk 0:02:59.3]} 3. Bb5 {[%clk 0:03:01.7]} 3... a6 {[%clk 0:02:59]}
4. Ba4 {[%clk 0:03:01.4]} 4... Nf6 {[%clk 0:02:59.7]} 5. O-O {[%clk 0:03:01.8]}
5... Be7 {[%clk 0:02:59.9]} 6. d3 {[%clk 0:03:01.6]} 6... b5 {[%clk 0:02:59.1]}
7. Bb3 {[%clk 0:03:02.2]} 7... O-O {[%clk 0:02:58]} 8. a4 {[%clk 0:03:02.4]}
8... Rb8 {[%clk 0:02:58]} 9. c3 {[%clk 0:03:00.9]} 9... d6 {[%clk 0:02:55.5]}
10. Re1 {[%clk 0:02:59.6]} 10... h6 {[%clk 0:02:54.6]} 11. Nbd2 {[%clk
0:02:59.2]} 11... Re8 {[%clk 0:02:54.5]} 12. Nf1 {[%clk 0:02:55]} 12... Bf8
{[%clk 0:02:54.1]} 13. Ng3 {[%clk 0:02:55.6]} 13... Be6 {[%clk 0:02:54.5]} 14.
axb5 {[%clk 0:02:54.4]} 14... axb5 {[%clk 0:02:54.4]} 15. Ra6 {[%clk 0:02:53.8]}
15... Qc8 {[%clk 0:02:47.3]} 16. Ra1 {[%clk 0:02:44.2]} 16... Qd7 {[%clk
0:02:47.1]} 17. Be3 {[%clk 0:02:43.6]} 17... d5 {[%clk 0:02:41.7]} 18. exd5
{[%clk 0:02:42.7]} 18... Bxd5 {[%clk 0:02:40.8]} 19. Bxd5 {[%clk 0:02:42.2]}
19... Nxd5 {[%clk 0:02:40.9]} 20. Ne4 {[%clk 0:02:38.3]} 20... f5 {[%clk
0:02:34.7]} 21. Qb3 {[%clk 0:02:33.8]} 21... Kh8 {[%clk 0:02:21.9]} 22. Nc5
{[%clk 0:02:33.2]} 22... Bxc5 {[%clk 0:02:21.4]} 23. Bxc5 {[%clk 0:02:34.1]}
23... Nf4 {[%clk 0:02:22]} 24. d4 {[%clk 0:02:28.9]} 24... e4 {[%clk 0:02:21.6]}
25. Nd2 {[%clk 0:02:23]} 25... Nd3 {[%clk 0:02:19.3]} 26. Red1 {[%clk
0:02:23.3]} 26... b4 {[%clk 0:01:56.8]} 27. Nc4 {[%clk 0:01:02.7]} 27... f4
{[%clk 0:01:57]} 28. Nd2 {[%clk 0:00:55]} 28... Qf5 {[%clk 0:01:44.6]} 29. c4
{[%clk 0:00:46]} 29... e3 {[%clk 0:01:29.3]} 30. fxe3 {[%clk 0:00:41.4]} 30...
fxe3 {[%clk 0:01:30.2]} 31. Nf3 {[%clk 0:00:42.1]} 31... Nf4 {[%clk 0:01:30.9]}
32. g3 {[%clk 0:00:27.1]} 32... Qe4 {[%clk 0:01:17.9]} 33. Rf1 {[%clk
0:00:25.2]} 33... Ne2+ {[%clk 0:01:18]} 34. Kg2 {[%clk 0:00:24.3]} 34... Nexd4
{[%clk 0:01:15.9]} 35. Bxd4 {[%clk 0:00:22.8]} 35... Nxd4 {[%clk 0:01:16.8]} 36.
Qd1 {[%clk 0:00:23.3]} 36... Nc2 {[%clk 0:01:11.2]} 37. Qe2 {[%clk 0:00:17.7]}
37... Nxa1 {[%clk 0:01:10.7]} 38. Rxa1 {[%clk 0:00:18.6]} 38... Rbd8 {[%clk
0:01:11.2]} 39. Kg1 {[%clk 0:00:17]} 39... Rf8 {[%clk 0:01:08.9]} 40. Rf1 {[%clk
0:00:14.1]} 40... b3 {[%clk 0:01:09.6]} 41. h4 {[%clk 0:00:13.9]} 41... Qg4
{[%clk 0:01:06.6]} 42. Qg2 {[%clk 0:00:11.8]} 42... e2 {[%clk 0:01:05]} 43. Qxe2
{[%clk 0:00:09.7]} 43... Qxg3+ {[%clk 0:01:05.3]} 44. Qg2 {[%clk 0:00:10.6]}
44... Qxg2+ {[%clk 0:01:04.4]} 45. Kxg2 {[%clk 0:00:11.5]} 45... Rf4 {[%clk
0:01:04.9]} 46. Rf2 {[%clk 0:00:11]} 46... Rxc4 {[%clk 0:01:04.2]} 47. Ne5
{[%clk 0:00:11.3]} 47... Rdd4 {[%clk 0:01:02.2]} 0-1

[Event "Early-Titled-Tuesday-Blitz-August-29-2023"]
[Site "Chess.com"]
[Date "2023.08.29"]
[Round "11"]
[White "GasconJR"]
[Black "KrokerGuy"]
[Result "1-0"]
[WhiteElo "2660"]
[BlackElo "2501"]
[TimeControl "180+1"]
[EndTime "10:03:14 PDT"]
[Termination "GasconJR won on time"]

1. Nf3 {[%clk 0:03:00.9]} 1... Nf6 {[%clk 0:02:59.5]} 2. g3 {[%clk 0:02:57.5]}
2... d5 {[%clk 0:02:57.7]} 3. Bg2 {[%clk 0:02:57.4]} 3... Bg4 {[%clk 0:02:58.4]}
4. O-O {[%clk 0:02:55.1]} 4... Bxf3 {[%clk 0:02:58.7]} 5. exf3 {[%clk
0:02:51.8]} 5... e6 {[%clk 0:02:58.4]} 6. d4 {[%clk 0:02:51.3]} 6... Be7 {[%clk
0:02:56.6]} 7. f4 {[%clk 0:02:51]} 7... O-O {[%clk 0:02:55]} 8. c3 {[%clk
0:02:49.9]} 8... c5 {[%clk 0:02:55.1]} 9. dxc5 {[%clk 0:02:42.3]} 9... Bxc5
{[%clk 0:02:56]} 10. Nd2 {[%clk 0:02:42.3]} 10... Nc6 {[%clk 0:02:54.2]} 11. Nb3
{[%clk 0:02:40.8]} 11... Bb6 {[%clk 0:02:50.1]} 12. Re1 {[%clk 0:02:36.2]} 12...
Qd7 {[%clk 0:02:46]} 13. a4 {[%clk 0:02:15.5]} 13... a5 {[%clk 0:02:29.3]} 14.
Nd2 {[%clk 0:01:46.7]} 14... d4 {[%clk 0:02:14.5]} 15. Nc4 {[%clk 0:01:44]}
15... Bc5 {[%clk 0:02:07.1]} 16. Ne5 {[%clk 0:01:41.5]} 16... Nxe5 {[%clk
0:02:05.6]} 17. fxe5 {[%clk 0:01:41.1]} 17... Ne8 {[%clk 0:01:59.7]} 18. Be3
{[%clk 0:01:30.4]} 18... Nc7 {[%clk 0:01:53.4]} 19. Bxd4 {[%clk 0:01:30.3]}
19... Be7 {[%clk 0:01:44.2]} 20. Be3 {[%clk 0:01:18.6]} 20... Qc8 {[%clk
0:01:26.3]} 21. Qb3 {[%clk 0:01:16.5]} 21... Rb8 {[%clk 0:01:23.6]} 22. Ba7
{[%clk 0:01:09.6]} 22... b6 {[%clk 0:01:06.8]} 23. Bxb8 {[%clk 0:01:06.7]} 23...
Qxb8 {[%clk 0:01:07.7]} 24. Qc4 {[%clk 0:00:59.2]} 24... Rc8 {[%clk 0:01:05.2]}
25. Rad1 {[%clk 0:00:50.2]} 25... Bc5 {[%clk 0:00:40.3]} 26. b4 {[%clk
0:00:46.7]} 26... axb4 {[%clk 0:00:39.1]} 27. cxb4 {[%clk 0:00:47.6]} 27... Bf8
{[%clk 0:00:37.8]} 28. Rc1 {[%clk 0:00:39]} 28... Be7 {[%clk 0:00:29.2]} 29.
Red1 {[%clk 0:00:38.4]} 29... Rd8 {[%clk 0:00:23.2]} 30. Rxd8+ {[%clk
0:00:33.1]} 30... Bxd8 {[%clk 0:00:24.1]} 31. Qc6 {[%clk 0:00:30.5]} 31... g6
{[%clk 0:00:13.4]} 32. Qb7 {[%clk 0:00:28.6]} 32... Qxb7 {[%clk 0:00:08.4]} 33.
Bxb7 {[%clk 0:00:29.5]} 33... Kf8 {[%clk 0:00:06.8]} 34. Rd1 {[%clk 0:00:27.4]}
34... Ke7 {[%clk 0:00:06.6]} 35. Bc6 {[%clk 0:00:27.2]} 1-0

[Event "Early-Titled-Tuesday-Blitz-August-29-2023"]
[Site "Chess.com"]
[Date "2023.08.29"]
[Round "11"]
[White "BlitzWizard04"]
[Black "Iball95"]
[Result "0-1"]
[WhiteElo "2592"]
[BlackElo "2778"]
[TimeControl "180+1"]
[EndTime "10:03:15 PDT"]
[Termination "Iball95 won by resignation"]

1. e4 {[%clk 0:02:57.8]} 1... c5 {[%clk 0:02:42.7]} 2. Nf3 {[%clk 0:02:58]} 2...
e6 {[%clk 0:02:43.3]} 3. d4 {[%clk 0:02:58.5]} 3... cxd4 {[%clk 0:02:43.9]} 4.
Nxd4 {[%clk 0:02:59.4]} 4... Nf6 {[%clk 0:02:43.3]} 5. Nc3 {[%clk 0:02:59.7]}
5... Nc6 {[%clk 0:02:43.8]} 6. Ndb5 {[%clk 0:02:58.8]} 6... Bc5 {[%clk
0:02:43.5]} 7. Bf4 {[%clk 0:02:57.5]} 7... O-O {[%clk 0:02:43.7]} 8. Bc7 {[%clk
0:02:57.6]} 8... Qe7 {[%clk 0:02:44.4]} 9. Bd6 {[%clk 0:02:58.3]} 9... Bxd6
{[%clk 0:02:45]} 10. Qxd6 {[%clk 0:02:59]} 10... Qd8 {[%clk 0:02:45.7]} 11. Nc7
{[%clk 0:02:59.7]} 11... Rb8 {[%clk 0:02:37.4]} 12. Be2 {[%clk 0:03:00.2]} 12...
b5 {[%clk 0:02:30.4]} 13. e5 {[%clk 0:02:57.4]} 13... Ne8 {[%clk 0:02:29.3]} 14.
Nxe8 {[%clk 0:02:57.3]} 14... Rxe8 {[%clk 0:02:30.2]} 15. f4 {[%clk 0:02:53.5]}
15... b4 {[%clk 0:02:24.6]} 16. Ne4 {[%clk 0:02:53.4]} 16... Qb6 {[%clk
0:02:25.2]} 17. Qd3 {[%clk 0:02:51.4]} 17... Bb7 {[%clk 0:01:44.5]} 18. O-O-O
{[%clk 0:02:38.4]} 18... Red8 {[%clk 0:01:40.4]} 19. Bf3 {[%clk 0:02:31.4]}
19... a5 {[%clk 0:01:34.5]} 20. Nd6 {[%clk 0:02:27.4]} 20... Ba6 {[%clk
0:01:34.5]} 21. Qd2 {[%clk 0:02:21.4]} 21... a4 {[%clk 0:01:34.3]} 22. Kb1
{[%clk 0:02:13.6]} 22... b3 {[%clk 0:01:24]} 23. cxb3 {[%clk 0:02:11.8]} 23...
axb3 {[%clk 0:01:24.9]} 24. a3 {[%clk 0:02:12.3]} 24... Ne7 {[%clk 0:01:17.5]}
25. Be4 {[%clk 0:02:08.5]} 25... Nc8 {[%clk 0:01:10]} 26. Bxh7+ {[%clk
0:01:53.8]} 26... Kxh7 {[%clk 0:01:05.2]} 27. Nxf7 {[%clk 0:01:54.1]} 27... Rf8
{[%clk 0:01:00.8]} 28. Ng5+ {[%clk 0:01:53.8]} 28... Kg8 {[%clk 0:00:59.3]} 29.
Qxd7 {[%clk 0:01:51.7]} 29... Bc4 {[%clk 0:00:50.1]} 30. h4 {[%clk 0:01:29.5]}
30... Rb7 {[%clk 0:00:21]} 31. Qd2 {[%clk 0:01:21.7]} 31... Ne7 {[%clk
0:00:21.5]} 32. h5 {[%clk 0:01:21.2]} 32... Nf5 {[%clk 0:00:19.6]} 33. g4 {[%clk
0:01:12.3]} 33... Ne3 {[%clk 0:00:17.6]} 34. Rc1 {[%clk 0:01:00.5]} 34... Rd8
{[%clk 0:00:17.2]} 35. Qc3 {[%clk 0:00:34.5]} 35... Bd3+ {[%clk 0:00:17.2]} 36.
Ka1 {[%clk 0:00:35.3]} 36... Nc2+ {[%clk 0:00:17.2]} 37. Rxc2 {[%clk 0:00:33.6]}
37... bxc2 {[%clk 0:00:18.1]} 38. h6 {[%clk 0:00:29.8]} 38... gxh6 {[%clk
0:00:17.4]} 39. Rxh6 {[%clk 0:00:20.6]} 39... Qg1+ {[%clk 0:00:17.1]} 0-1